Cogmind - Beta 11.1 @@@ ROGUE MODE // 2022.12.21 @ 02:06:07 Player: ktur Result: Destroyed by 1C-UTU with 1C-UTU's Sword "Lootmaker" Performance ------------- Evolutions (1) 500 Regions Visited (6) 1200 Robots Destroyed (81) 405 Value Destroyed (1974) 1974 Prototype IDs (37) 740 Alien Tech Used (0) 0 Bonus (398) 398 TOTAL SCORE: 5217 Bonus ------- High Alert Combat Kills 124 Aligned with FarCom 300 Friendly Fire -26 Cogmind --------- Core Integrity 0/400 Matter 121/300 Energy 100/100 System Corruption 0% Temperature Cool (0) Movement Core (1700) Ox33 Location -8/Mines Parts ------- > --- POWER (1) -------- (None) > --- PROPULSION (2) --- (None) > --- UTILITY (4) ------ Huge Storage Unit Improved Target Analyzer Advanced Weapon Cycler Sensor Drone Bay (16/20) > --- WEAPON (2) ------- 8R-AWN's Boregun > --- INVENTORY (25) --- Cooled Ion Engine Light Treads Light Treads Light Treads Light Treads Light Treads Advanced Myomer Leg Advanced Myomer Leg Experimental Heat Sink Medium Matter Pod (37) Salvage Targeting Computer Experimental Core Analyzer Improved Armor Integrity Analyzer Advanced Transmission Jammer 8R-AWN's Armor/EX Shield Generator Hacking Suite Advanced Component Analysis Suite System Purifier AS-neutralizer No. 17b Rocket Launcher Mini Grenade Launcher Peak State ------------ > --- POWER ------------ Reinforced Fission Core > --- PROPULSION ------- Light Treads Light Treads > --- UTILITY ---------- Huge Storage Unit Improved Target Analyzer Advanced Weapon Cycler Shield Generator > --- WEAPON ----------- 8R-AWN's Boregun 8R-AWN's Boregun > --- INVENTORY -------- Cooled Ion Engine Light Treads Light Treads Light Treads Light Treads Light Treads Advanced Myomer Leg Advanced Myomer Leg Experimental Heat Sink Medium Matter Pod Salvage Targeting Computer Experimental Core Analyzer Improved Armor Integrity Analyzer Advanced Transmission Jammer 8R-AWN's Armor/EX Shield Generator Hacking Suite Advanced Component Analysis Suite System Purifier Sensor Drone Bay AS-neutralizer No. 17b Rocket Launcher Mini Grenade Launcher [Rating: 56] Favorites ----------- Power Cooled Ion Engine Engine Cooled Ion Engine Power Core Reinforced Fission Core Propulsion Light Treads Treads Light Treads Utility Salvage Targeting Computer Device Hardlight Generator Storage Huge Storage Unit Processor Salvage Targeting Computer Protection Light Armor Plating Weapon 8R-AWN's Boregun Energy Gun Medium Laser Energy Cannon Beam Cannon Ballistic Gun 8R-AWN's Boregun Ballistic Cannon Light Cannon Launcher Mini Grenade Launcher Build | -11 -10 -10 -9 -9 -9 -8 ------- Run | Scr Mat Min Mat Min Exi Min Slots Evolved 2 | . . . 2 . . . Power . | . . . . . . . Propulsion . | . . . . . . . Utility 2 | . . . 2 . . . Weapon . | . . . . . . . Parts Attached 112 | 6 13 1 42 4 43 3 Power 7 | 1 . . 3 . 3 . Engine 6 | 1 . . 3 . 2 . Core 1 | . . . . . 1 . Reactor . | . . . . . . . Propulsion 21 | 2 2 . 9 . 8 . Treads 21 | 2 2 . 9 . 8 . Leg . | . . . . . . . Wheel . | . . . . . . . Hover . | . . . . . . . Flight . | . . . . . . . Utility 41 | 1 3 . 12 3 19 3 Device 22 | . . . 4 . 15 3 Storage 7 | 1 2 . 2 1 1 . Processor 7 | . 1 . 3 1 2 . Hackware . | . . . . . . . Protection 5 | . . . 3 1 1 . Artifact . | . . . . . . . Weapon 43 | 2 8 1 18 1 13 . Energy Gun 1 | 1 . . . . . . Energy Cannon 5 | . 2 1 2 . . . Ballistic Gun 24 | 1 1 . 10 1 11 . Ballistic Cannon 5 | . 4 . 1 . . . Launcher 8 | . 1 . 5 . 2 . Special Weapon . | . . . . . . . Impact Weapon . | . . . . . . . Slashing Weapon . | . . . . . . . Piercing Weapon . | . . . . . . . Special Melee Weapon . | . . . . . . . Unidentified Prototypes 7 | . . . 2 . 5 . Parts Lost 24 | . . . 2 3 16 3 Power . | . . . . . . . Propulsion 8 | . . . 1 . 6 1 Utility 9 | . . . 1 2 5 1 Weapon 7 | . . . . 1 5 1 Highest Loss Streak 6 | . . . 1 1 6 3 To Critical Strikes 11 | . . . . . 11 . Average Slot Usage (%) 91 | . 96 100 99 100 84 95 Engine 11 | . 14 14 11 11 10 . Treads 23 | . 28 28 21 22 21 18 Device 10 | . . . 10 11 13 22 Storage 11 | . 14 14 11 11 10 11 Processor 12 | . 11 14 15 11 11 11 Protection 5 | . . . 5 11 6 . Energy Cannon 2 | . 8 14 3 . . . Ballistic Gun 10 | . 4 . 16 22 8 22 Ballistic Cannon 2 | . 10 14 1 . . . Naked Turns . | . . . . . . . Heaviest Build 129 | 14 51 51 65 102 116 129 Greatest Support 40 | 40 40 40 40 40 40 40 Greatest Overweight (x) 35 | . 1 1 1 2 2 35 Average Overweight (x) 1 | . . 1 1 1 1 5 Largest Inventory Capacity 25 | 8 20 20 20 25 25 25 Average Capacity 22 | 7 14 20 20 24 24 25 Most Carried 25 | 6 11 14 20 25 25 25 Average Carried 20 | 3 9 12 19 24 22 24 Final Capacity 25 | 8 20 20 20 25 25 25 Final Carried 25 | 6 11 14 20 25 25 24 Class Distribution -------------------- 83% | Mutant 16% | Scavenger-Mutant Dominant Class ---------------- Mutant | -10/Materials Mutant | -10/Mines Mutant | -9/Materials Mutant | -9/Mines Mutant | -9/Exiles Scavenger-Mutant | -8/Mines Resources | -11 -10 -10 -9 -9 -9 -8 ----------- Run | Scr Mat Min Mat Min Exi Min Matter Collected 2822 | 238 278 55 752 231 1268 . Remotely . | . . . . . . . Salvage Created 2977 | . 441 10 1391 481 644 10 Parts 236 | . 26 2 103 20 85 . Haulers Intercepted 2 | . . . 2 . . . Recyclers Shooed 5 | . 1 . 3 1 . . Parts Field Recycled . | . . . . . . . Retrieved Matter . | . . . . . . . Parts Self-Destructed . | . . . . . . . Prevented . | . . . . . . . Kills | -11 -10 -10 -9 -9 -9 -8 ------- Run | Scr Mat Min Mat Min Exi Min Combat Hostiles Destroyed 63 | . 13 . 36 8 6 . Melee 1 | . . . . . 1 . Guns 24 | . 1 . 15 8 . . Cannons 17 | . 10 . 7 . . . AOE 21 | . 2 . 14 . 5 . Classes Destroyed 14 | . 4 1 5 1 3 . Worker 4 | . . 1 1 2 . . Builder 1 | . 1 . . . . . Hauler 2 | . . . 2 . . . Recycler 3 | . 1 . 1 1 . . Mechanic 1 | . . . 1 . . . Operator 1 | . . . 1 . . . Turret 1 | . . . . . 1 . Swarmer 13 | . 3 . 10 . . . Grunt 31 | . 10 . 16 5 . . Brawler 1 | . . . . 1 . . Duelist 4 | . . . 2 2 . . Sentry 8 | . . . 8 . . . Zionite 8 | . . . . . 8 . Assembled 5 | . . . . . 5 . Best Kill Streak 9 | . 7 1 9 3 5 . Combat Bots Only 9 | . 6 . 9 3 5 . Max Kills in Single Turn 4 | . 3 1 4 1 2 . Gunslinging 1 | . . . 1 . . . Exploded 4 | . 2 . 4 . 2 . Melee 1 | . . . . . 1 . Uniques/NPCs Destroyed 4 | . . . . . 4 . 8R-AWN (-9/Exiles) EX-HEX (-9/Exiles) EX-DEC (-9/Exiles) EX-BIN (-9/Exiles) Combat | -11 -10 -10 -9 -9 -9 -8 -------- Run | Scr Mat Min Mat Min Exi Min Damage Taken 4077 | . 308 . 871 257 1870 771 Core 476 | . 57 . 60 . 235 124 Absorbed by Shields 900 | . . . 296 44 546 14 Redirected to Shielding 40 | . . . . . 40 . Regen/Repaired (Parts) 121 | . 121 . . . . . Core Remaining (%) 88 | 100 . 77 . . . . Volleys Fired 235 | . 25 . 74 20 109 7 Largest 2 | . 2 . 2 2 2 2 Hottest 95 | . 95 . 95 46 60 60 Shots Fired 439 | . 48 1 142 39 195 14 Gun 358 | . 4 . 113 39 188 14 Cannon 62 | . 42 1 19 . . . Launcher 19 | . 2 . 10 . 7 . Special . | . . . . . . . Kinetic 388 | . 30 1 116 39 188 14 Thermal 32 | . 16 . 16 . . . Explosive 19 | . 2 . 10 . 7 . Electromagnetic . | . . . . . . . Robot Hit Streak 21 | . 7 3 19 11 21 4 Robot Miss Streak 5 | . 2 . 3 1 5 4 Penetration Max 1 | . . . . . 1 1 Secondary Targets 3 | . . . 2 1 . . Max Gunslinging Chain 1 | . . . 1 1 . . Shots Hit Robots 310 | . 29 1 108 31 134 7 Core Hits 148 | . 22 2 71 16 36 1 Critical Kills 5 | . . . . . 5 . Critical Parts Destroyed 17 | . . . . . 16 1 Critical Strikes 26 | . . . 1 . 21 4 Destroy 25 | . . . . . 21 4 Blast 1 | . . . 1 . . . Melee Attacks . | . . . . . . . Impact . | . . . . . . . Slashing . | . . . . . . . Piercing . | . . . . . . . Sneak Attacks . | . . . . . . . Combat Hostiles . | . . . . . . . Follow-up Attacks . | . . . . . . . Damage Inflicted 6983 | . 746 28 2807 542 2695 165 Guns 4101 | . 35 . 1311 484 2106 165 Cannons 837 | . 491 16 330 . . . Explosions 1840 | . 207 . 1146 . 487 . Melee . | . . . . . . . Ramming 205 | . 13 12 20 58 102 . Kinetic 4530 | . 395 16 1364 484 2106 165 Thermal 408 | . 131 . 277 . . . Explosive 1840 | . 207 . 1146 . 487 . Electromagnetic . | . . . . . . . Impact . | . . . . . . . Slashing . | . . . . . . . Piercing . | . . . . . . . Highest Corruption 2 | . 2 2 . 1 1 . Average Corruption 1 | . 2 2 . 1 1 . Corruption Purged 1 | . . . . . 1 . Corruption Blocked . | . . . . . . . Effects 69 | . 3 21 . 5 40 . Message Errors 15 | . 1 6 . 1 7 . Matter Fused 23 | . 1 6 . 2 14 . Heat Flow Errors 8 | . . 3 . . 5 . Energy Discharges 6 | . 1 1 . 1 3 . Data Loss (minor) 10 | . . 2 . . 8 . Data Loss (major) 4 | . . 2 . . 2 . Misfires 1 | . . 1 . . . . Alerts 1 | . . . . 1 . . Weapon Failures 1 | . . . . . 1 . Overload Shots . | . . . . . . . Overflow Damage 62 | . . . 32 . 30 . Projectiles . | . . . . . . . Explosions 62 | . . . 32 . 30 . Melee . | . . . . . . . Knockbacks 6 | . 4 1 1 . . . Impact 1 | . . 1 . . . . Kinetic 5 | . 4 . 1 . . . Secondary . | . . . . . . . Self-Inflicted Damage 70 | . . . 22 . 48 . Shots 2 | . . . 1 . 1 . Rammed 64 | . 5 4 9 6 40 . Targets Rammed 67 | . 5 4 9 8 41 . Kicked . | . . . . . . . Crushed 3 | . . . . 2 1 . Highest Temperature 273 | . 273 262 75 . 271 164 Average Temperature 62 | . 82 120 25 . 51 82 Received Heat Transfer 429 | . 162 . 232 35 . . Effects 1 | . . 1 . . . . Energy Bleed 1 | . . 1 . . . . Siege Activations . | . . . . . . . Robots Corrupted . | . . . . . . . Combat Hostiles . | . . . . . . . Parts Fried . | . . . . . . . Impact Corruptions 1 | . . . . . 1 . Robots Melted . | . . . . . . . Combat Hostiles . | . . . . . . . Parts Melted 1 | . . . 1 . . . Heat Transferred 851 | . 296 . 555 . . . Parts Sabotaged . | . . . . . . . Parts Stolen . | . . . . . . . Parts Stripped . | . . . . . . . Power Chain Reactions . | . . . . . . . Missiles Intercepted . | . . . . . . . Alert | -11 -10 -10 -9 -9 -9 -8 ------- Run | Scr Mat Min Mat Min Exi Min Peak Influence 761 | . 335 49 761 346 . 2 Initial 271 | . . 49 1 271 . . Average 148 | . 137 14 279 122 . . Maximum Alert Level 3 | . 1 . 3 1 . . Low Security (%) 74 | 100 63 100 57 76 . 100 Level 1 17 | . 36 . 15 23 . . Level 2 3 | . . . 10 . . . Level 3 5 | . . . 16 . . . Level 4 . | . . . . . . . Level 5 . | . . . . . . . High Security . | . . . . . . . Max Security . | . . . . . . . Squads Dispatched 7 | . 2 . 5 . . . Investigation 4 | . 2 . 2 . . . Extermination . | . . . . . . . Reinforcement 2 | . . . 2 . . . Assault 1 | . . . 1 . . . Garrison . | . . . . . . . Intercept . | . . . . . . . Searches Triggered . | . . . . . . . Construction Impeded . | . . . . . . . Haulers Reinforced . | . . . . . . . Active Scanning Responses . | . . . . . . . Cargo Convoy Interrupts . | . . . . . . . Stealth | -11 -10 -10 -9 -9 -9 -8 --------- Run | Scr Mat Min Mat Min Exi Min Distress Signals 9 | . 4 . 5 . . . Communications Jammed . | . . . . . . . Distress Signals . | . . . . . . . Times Spotted 99 | . 18 . 54 9 17 1 Peak Tracking Total 10 | . 4 . 7 3 10 1 Tactical Retreats 6 | . . . . 2 4 . Traps | -11 -10 -10 -9 -9 -9 -8 ------- Run | Scr Mat Min Mat Min Exi Min Traps Triggered 2 | . 2 . . . . . Indirectly . | . . . . . . . Trap Hack Attempts . | . . . . . . . Triggered . | . . . . . . . Disarmed . | . . . . . . . Reprogrammed . | . . . . . . . Reused . | . . . . . . . Traps Extracted . | . . . . . . . Installed . | . . . . . . . Triggered . | . . . . . . . Exploded 3 | . . . . . 3 . Machines | -11 -10 -10 -9 -9 -9 -8 ---------- Run | Scr Mat Min Mat Min Exi Min Machines Disabled 14 | . 1 . . . 13 . Max in Single Turn 1 | . 1 . . . 1 . Machines Sabotaged . | . . . . . . . Garrisons Compromised . | . . . . . . . Overloaded Fab Kills . | . . . . . . . Hacking | -11 -10 -10 -9 -9 -9 -8 --------- Run | Scr Mat Min Mat Min Exi Min Machines Accessed 21 | . 8 1 10 . 2 . Terminals 13 | . 5 . 8 . . . Fabricators . | . . . . . . . Repair Stations 2 | . 1 . 1 . . . Recycling Units 3 | . 2 . 1 . . . Scanalyzers . | . . . . . . . Garrison Access . | . . . . . . . Total Hacks 63 | . 20 1 40 . 2 . Successful 33 | . 11 1 19 . 2 . Failed 29 | . 8 . 21 . . . Catastrophic 1 | . . . 1 . . . Database Lockouts 1 | . 1 . . . . . Manual 43 | . 14 . 28 . 1 . Terminals 51 | . 16 . 35 . . . Fabricators . | . . . . . . . Repair Stations 6 | . 2 . 4 . . . Recycling Units 3 | . 2 . 1 . . . Scanalyzers . | . . . . . . . Garrison Access . | . . . . . . . Terminal Hacks 22 | . 6 1 13 . 2 . Record 1 | . . . . . 1 . Part Schematic 4 | . 1 . 3 . . . Robot Analysis 4 | . 3 . 1 . . . Prototype ID Bank 4 | . 1 . 3 . . . Open Door 1 | . . 1 . . . . Branch Access Points 1 | . . . 1 . . . Alert Level 1 | . . . 1 . . . Locate Traps 2 | . 1 . 1 . . . Transport Status 2 | . . . 2 . . . Hauler Manifests 1 | . . . 1 . . . EX-Prototype ID Bank 1 | . . . . . 1 . Fabricator Hacks . | . . . . . . . Repair Station Hacks 3 | . 2 . 1 . . . Scan Component 2 | . 1 . 1 . . . Repair 1 | . 1 . . . . . Recycling Unit Hacks . | . . . . . . . Scanalyzer . | . . . . . . . Garrison Access Hacks . | . . . . . . . Unauthorized Hacks 8 | . 3 . 5 . . . Terminals 5 | . 1 . 4 . . . Botnet 3 | . 1 . 2 . . . Operators 2 | . . . 2 . . . Fabricators . | . . . . . . . Repair Stations . | . . . . . . . Recycling Units 3 | . 2 . 1 . . . Tunnel 3 | . 2 . 1 . . . Scanalyzers . | . . . . . . . Garrison Access . | . . . . . . . Data Cores Recovered . | . . . . . . . Used . | . . . . . . . Hacking Detections 15 | . 6 . 9 . . . Full Trace Events 2 | . . . 2 . . . Feedback Events . | . . . . . . . Feedback Blocked . | . . . . . . . Robot Schematics Acquired . | . . . . . . . Robots Built . | . . . . . . . Authchips . | . . . . . . . Time . | . . . . . . . Total Robot Build Rating . | . . . . . . . Part Schematics Acquired 3 | . 1 . 2 . . . Parts Built . | . . . . . . . Authchips . | . . . . . . . Time . | . . . . . . . Total Part Build Rating . | . . . . . . . Parts Repaired 1 | . 1 . . . . . Time 26 | . 26 . . . . . Parts Recycled . | . . . . . . . Recycled Matter . | . . . . . . . Retrieved Matter . | . . . . . . . Retrieved Components . | . . . . . . . Parts Scanalyzed . | . . . . . . . Part Schematics Acquired . | . . . . . . . Parts Damaged . | . . . . . . . Bothacking | -11 -10 -10 -9 -9 -9 -8 ------------ Run | Scr Mat Min Mat Min Exi Min Used RIF Installer . | . . . . . . . Robots Hacked . | . . . . . . . Non-combat . | . . . . . . . Combat . | . . . . . . . Robot Hacks Applied . | . . . . . . . Relay Couplers Released . | . . . . . . . Fabnet Peak Effective % . | . . . . . . . Robots Rewired . | . . . . . . . Allies Hacked . | . . . . . . . Hacks Repelled . | . . . . . . . Allies | -11 -10 -10 -9 -9 -9 -8 -------- Run | Scr Mat Min Mat Min Exi Min Total Allies 3 | . . . . 3 . . Largest Group 3 | . . . . 3 . . Highest-Rated Group 40 | . . . . 40 . . Highest-Rated Ally 16 | . . . . 16 . . Total Orders 2 | . . . . . . 2 EXPLORE 1 | . . . . . . 1 RETURN 1 | . . . . . . 1 Ally Attacks 4 | . . . . 4 . . Total Damage 43 | . . . . 43 . . Kills . | . . . . . . . Allies Corrupted . | . . . . . . . Allies Melted . | . . . . . . . Intel | -11 -10 -10 -9 -9 -9 -8 ------- Run | Scr Mat Min Mat Min Exi Min Robot Analysis Total 4 | . 3 . 1 . . . Derelict Logs Recovered 3 | . . 2 . 1 . . Drone Launches 6 | . . . . . . 6 Drone Recoveries 2 | . . . . . . 2 Exploration | -11 -10 -10 -9 -9 -9 -8 ------------- Run | Scr Mat Min Mat Min Exi Min Turns Passed 13335 | 97 970 1428 2065 1691 7009 75 Spaces Moved 4246 | 57 413 590 684 489 2002 11 Core 27 | 7 . . . . 19 1 Treads 4219 | 50 413 590 684 489 1983 10 Legs . | . . . . . . . Wheels . | . . . . . . . Hover . | . . . . . . . Flight . | . . . . . . . Fastest Speed 50 | 50 160 240 240 240 50 320 Average Speed 280 | 146 195 240 240 315 317 490 Slowest Speed 1800 | 160 240 240 240 320 320 1800 Overloaded Moves . | . . . . . . . Propulsion Burnouts . | . . . . . . . Robots Hopped . | . . . . . . . Cave-ins Triggered . | . . . . . . . Time Travels 1 | . . . . . 1 . Exploration Rate (%) 61 | 5 66 98 68 89 90 12 Regions Visited 6 Branch Regions 4 Pre-discovered Areas 6 | . 2 1 1 1 1 . Known Exits Taken 1 | . . . 1 . . . Unknown Exits Taken 5 | 1 1 1 . 1 1 . Scrap Searched 2 | . . 1 . 1 . . Spaces Dug 20 | . . . . . 20 . Terrain Destroyed 126 | . 2 . 57 . 62 5 Melee . | . . . . . . . Projectile 17 | . . . . . 12 5 AOE 108 | . 2 . 57 . 49 . Terrain Rammed . | . . . . . . . Walls Destroyed . | . . . . . . . Machines Disabled . | . . . . . . . Actions | -11 -10 -10 -9 -9 -9 -8 --------- Run | Scr Mat Min Mat Min Exi Min Total 5181 | 68 526 597 961 580 2418 31 Wait 292 | . 49 . 89 50 94 10 Move 4240 | 56 412 589 683 488 2001 11 Hop . | . . . . . . . Pick Up 135 | 6 12 3 29 9 76 . Fast Attach 26 | 6 5 . 4 . 11 . Attach 31 | . . . 7 3 20 1 Detach 4 | . . . 2 . 2 . Swap 55 | . 8 1 31 1 12 2 Drop 96 | . 10 . 33 1 52 . Fire 235 | . 25 . 74 20 109 7 Melee . | . . . . . . . Ram . | . . . . . . . Kick . | . . . . . . . Crush 67 | . 5 4 9 8 41 . Escape Stasis . | . . . . . . . Rewire . | . . . . . . . Trap . | . . . . . . . Miscellaneous . | . . . . . . . Route ------- -11/Scrapyard -10/Materials (discovered 3 exits: *Mat x2 / *Min) -10/Mines (discovered 2 exits: *Mat x2) -9/Materials (discovered 4 exits: [*Mat x2] / *Min x2) -9/Mines (discovered 3 exits: [*Mat x2] / *Exi) -9/Exiles -8/Mines History --------- Turn | Location | Event 27 | -11/Scrapyard | Discovered new exit (range 16) 98 | -11/Scrapyard | Entered Materials 313 | -10/Materials | Build established: Mutant 438 | -10/Materials | Discovered new exit (range 14) 556 | -10/Materials | Discovered new exit (range 9) 559 | -10/Materials | Central database locked down 790 | -10/Materials | Discovered new exit (range 16) 903 | -10/Materials | Repaired Lgt. Treads 1068 | -10/Materials | Entered Mines 1078 | -10/Mines | Met a Derelict bent on vengeance 1206 | -10/Mines | Found the Drone Emporium 1220 | -10/Mines | Found Prototype Device 1271 | -10/Mines | Learned location of Mines (-9) 1738 | -10/Mines | Discovered new exit (range 6) 1776 | -10/Mines | Discovered new exit (range 6) 2477 | -10/Mines | Learned Materials emergency access door positions 2496 | -10/Mines | Entered Materials 2496 | -9/Materials | Evolved 2 slots: Utility x2 2497 | -9/Materials | Identified Sensor Drone Bay 3213 | -9/Materials | Discovered new exit (range 9) 3345 | -9/Materials | Discovered new exit (range 5) 3551 | -9/Materials | Identified exit to Mines 3596 | -9/Materials | Build established: Scavenger-Mutant 4042 | -9/Materials | Build established: Mutant 4044 | -9/Materials | Destroyed 9 combat bots 4096 | -9/Materials | First assault squad dispatched 4367 | -9/Materials | Discovered new exit (range 5) 4561 | -9/Materials | Entered Mines 4706 | -9/Mines | Discovered new exit (range 8) 4971 | -9/Mines | Assisted by bots powering up and referring to "LRC-V3" 5031 | -9/Mines | Discovered new exit (range 8) 5042 | -9/Mines | Received a Rocket Launcher from a helpful Derelict 5532 | -9/Mines | Learned location of Storage (-7) 6239 | -9/Mines | Deemed a non-threat by the Exiles lab entrance 6239 | -9/Mines | Discovered new exit (range 5) 6252 | -9/Mines | Entered Exiles 6334 | -9/Exiles | Met 8R-AWN 6461 | -9/Exiles | Met EX-HEX 6737 | -9/Exiles | Met EX-DEC 6756 | -9/Exiles | Learned location of Zion (-7) 6846 | -9/Exiles | Discovered new exit (range 14) 7244 | -9/Exiles | Met EX-BIN 8339 | -9/Exiles | Aligned with FarCom system 8342 | -9/Exiles | Given EX-Vault access code 8419 | -9/Exiles | Opened EX-Vault 8490 | -9/Exiles | Warned to stay clear of 0b10 Research branches 8911 | -9/Exiles | Found Chronowheel 10092 | -9/Exiles | Attacked by the Exiles 10254 | -9/Exiles | Lost 5 parts (2n2u1w) 10357 | -9/Exiles | Core integrity fell below 50% 10378 | -9/Exiles | Lost 6 parts (2n4w) 10482 | -9/Exiles | Destroyed 8R-AWN 10488 | -9/Exiles | Found Prototype Ballistic Gun 10488 | -9/Exiles | Identified 8R-AWN's Boregun 10496 | -9/Exiles | Found 8R-AWN's Boregun 10509 | -9/Exiles | Lost 5 parts (2n3u) 10524 | -9/Exiles | Found Prototype Device 10524 | -9/Exiles | Identified AS-neutralizer No. 17b 10543 | -9/Exiles | Found Prototype Protection 11224 | -9/Exiles | Destroyed EX-HEX 11495 | -9/Exiles | Build established: Scavenger-Mutant 11525 | -9/Exiles | Destroyed EX-DEC 11530 | -9/Exiles | Destroyed EX-BIN 11599 | -9/Exiles | Found Prototype Device 11599 | -9/Exiles | Identified System Purifier 11631 | -9/Exiles | Found Prototype Processor 11639 | -9/Exiles | Found Deploy-a-Sentry 12350 | -9/Exiles | Activated Chronowheel 12350 | -9/Exiles | Spacetime reconverged on an earlier point 13261 | -9/Exiles | Entered Mines 13307 | -8/Mines | 1C-UTU came to Exiles' defense 13322 | -8/Mines | Core integrity fell below 20% 13336 | -8/Mines | Destroyed by 1C-UTU with 1C-UTU's Sword "Lootmaker" Last Messages --------------- 13321_ 1C-UTU suffers critical hit (Destroy). 13321_ HV Slug penetrates Wall. 13321_ Shield Generator destroyed. 13323_ 1C-UTU follow-up attacks with Prototype Slashing Weapon. 13323_ Rnf. Fission Core severed. 13325_ Sensor Drone released from Sensor Drone Bay. 13325_ 1C-UTU follow-up attacks with Prototype Slashing Weapon. 13325_ Lgt. Treads severed. 13326_ Sensor Drone released from Sensor Drone Bay. 13326_ U-05 Engineer builds a Wall. 13326_ Lgt. Treads destroyed. 13327_ Sensor Drone released from Sensor Drone Bay. 13327_ Sensor Drone destroyed. 13328_ Sensor Drone released from Sensor Drone Bay. 13329_ Sensor Drone retrieved by Sensor Drone Bay. 13330_ 1C-UTU follow-up attacks with Prototype Slashing Weapon. 13330_ Sensor Drone destroyed. 13332_ 1C-UTU follow-up attacks with Prototype Slashing Weapon. 13332_ 8R-AWN's Boregun destroyed. 13334_ 1C-UTU follow-up attacks with Prototype Slashing Weapon. Map ----- +----------------------------------------------------+ | | | | | | | | | | | | | | | | | | | | | | | | | | | | | | | | | | | ????????????????????????????? | | ????????????????????????????? | | ??????????????#############?? | | ??????????????# #?? | | ??????????????# #?? | | ??????######### % #?? | | ??????# u $ n%* #?? | | ??????# ###### =%% l#?? | | ??????# #????# * @#?? | | ??????# #????# #?? | | ??????# #????# #?? | | ??????# #????# #?? | | ??????# #????# #?? | | ???#### #????# """ """ #?? | | ???# #????# """ """ #?? | | ???# #????# """ """ #?? | | ???# ####????# #?? | | ???# ????????# """ """ #?? | | ???# ????????# """ """ #?? | | ???# ????????# """ """ #?? | | ???# ?????????# #?? | | ???# ?????????############??? | | ??? ???????????????????????? | | ??? ???????????????????????? | | ?? ????????????????????????? | | ??##????????????????????????? | | ????????????????????????????? | | ????????????????????????????? | | ????????????????????????????? | | ????????????????????????????? | | ????????????????????????????? | | ????????????????????????????? | | ????????????????????????????? | +----------------------------------------------------+ Best States ------------- Heat Dissipation 54 Energy Generation 19 Energy Capacity 500 Matter Stores 300 Matter Capacity 300 Sight Range 16 Terrain Scan Density 10 Armor Coverage 225 Core Shielding 20 Weapon Cycling 25 Evasion (%) 50 Targeting Accuracy 12 Launcher Accuracy 40 Target Analysis 6 Recoil Reduction 2 Salvage Targeting 1 Item Schematics ----------------- Huge Storage Unit | -10/Materials | Hacked Plasma Cutter | -9/Materials | Hacked Trap Extractor | -9/Materials | Hacked Robot Schematics ------------------ None Fabricated ------------ Nothing Alien Tech Used ----------------- None Achievements -------------- None Challenges ------------ None Game ------ Seed WeldingWeldingNullifier Manual? 0 Play Time 01:01:04 Cumulative 604.5 hours Start 2022.12.21 @ 01:04:32 End 2022.12.21 @ 02:06:07 Sessions 1 Manual Loads 0 Difficulty Rogue Special Mode None Game No. 559 Rogue 559 Adventurer 0 Explorer 0 Win Type - Total 28 Types 14/2/7/2/0/0/1/1/1 Lore% 94 Gallery% 94 Achievement% 80 Wizard Run 0 Options --------- ASCII 0 Keyboard 0 Movement Arrows Keybinds 0 Fullscreen 1 Font 18/Smallcaps Map View 76x50 Tactical HUD 1 Map Filters NONE Filters NONE Steam 1 RUN: af8ed2f5-79ed-47ab-bcec-3a6bed22c418